[Event "*** Biggest EVER Titled Tuesday"]
[Site "Chess.com"]
[Date "2018.04.17"]
[Round "7"]
[White "Bauxi435"]
[Black "StellarChessPro"]
[Result "0-1"]
[WhiteElo "2425"]
[BlackElo "2388"]
[TimeControl "180+2"]
[EndTime "14:37:23 PDT"]
[Termination "StellarChessPro won by resignation"]

1. d4 {[%clk 0:03:01.9]} 1... d5 {[%clk 0:03:00.6]} 2. c4 {[%clk 0:03:03.2]}
2... dxc4 {[%clk 0:03:01.5]} 3. e3 {[%clk 0:03:04]} 3... c5 {[%clk 0:03:01.9]}
4. Bxc4 {[%clk 0:03:05]} 4... cxd4 {[%clk 0:03:01.9]} 5. exd4 {[%clk 0:03:06.9]}
5... Nf6 {[%clk 0:03:02.8]} 6. Nf3 {[%clk 0:03:07.3]} 6... e6 {[%clk 0:03:03.7]}
7. O-O {[%clk 0:03:06.9]} 7... Be7 {[%clk 0:03:05]} 8. Nc3 {[%clk 0:03:04.4]}
8... O-O {[%clk 0:03:06]} 9. Bf4 {[%clk 0:02:57.1]} 9... a6 {[%clk 0:03:05.8]}
10. a3 {[%clk 0:02:47.9]} 10... Nbd7 {[%clk 0:03:05.9]} 11. Rc1 {[%clk 0:02:45]}
11... Nb6 {[%clk 0:03:06.4]} 12. Ba2 {[%clk 0:02:45.6]} 12... Nbd5 {[%clk
0:03:05.9]} 13. Nxd5 {[%clk 0:02:34.1]} 13... Nxd5 {[%clk 0:03:07.7]} 14. Bg3
{[%clk 0:02:34.2]} 14... b5 {[%clk 0:03:07.7]} 15. Ne5 {[%clk 0:02:29.9]} 15...
Bb7 {[%clk 0:03:08.3]} 16. Nc6 {[%clk 0:02:27.8]} 16... Bxc6 {[%clk 0:03:08.8]}
17. Rxc6 {[%clk 0:02:29.7]} 17... Qd7 {[%clk 0:03:10.3]} 18. Qc2 {[%clk
0:02:09]} 18... Bf6 {[%clk 0:03:09.4]} 19. Rd6 {[%clk 0:02:05.1]} 19... Qb7
{[%clk 0:02:45.6]} 20. Bxd5 {[%clk 0:02:01.8]} 20... exd5 {[%clk 0:02:46.3]} 21.
Qc5 {[%clk 0:01:35]} 21... Rfc8 {[%clk 0:02:34.7]} 22. Qxd5 {[%clk 0:01:34.6]}
22... Qxd5 {[%clk 0:02:34.7]} 23. Rxd5 {[%clk 0:01:36.5]} 23... Rc2 {[%clk
0:02:36]} 24. Rb1 {[%clk 0:01:33.8]} 24... Rac8 {[%clk 0:02:36]} 25. h4 {[%clk
0:01:28.1]} 25... g6 {[%clk 0:02:33.9]} 26. h5 {[%clk 0:01:29.2]} 26... gxh5
{[%clk 0:02:30.1]} 27. Rd6 {[%clk 0:01:24]} 27... R8c6 {[%clk 0:01:49.5]} 28.
Rxc6 {[%clk 0:01:23.6]} 28... Rxc6 {[%clk 0:01:51.4]} 29. d5 {[%clk 0:01:25]}
29... Rc2 {[%clk 0:01:39.3]} 30. Rd1 {[%clk 0:01:01.5]} 30... Kf8 {[%clk
0:00:58.1]} 31. d6 {[%clk 0:00:42]} 31... Ke8 {[%clk 0:00:58.6]} 32. d7+ {[%clk
0:00:34.9]} 32... Kd8 {[%clk 0:00:59]} 33. Kh2 {[%clk 0:00:25.4]} 33... Bxb2
{[%clk 0:00:53.4]} 34. Bh4+ {[%clk 0:00:17.7]} 34... f6 {[%clk 0:00:54]} 35. Kg3
{[%clk 0:00:18.4]} 35... Rc7 {[%clk 0:00:52]} 36. Rd6 {[%clk 0:00:16.7]} 36...
Be5+ {[%clk 0:00:36.8]} 37. f4 {[%clk 0:00:15.6]} 37... Bxd6 {[%clk 0:00:37.7]}
0-1

[Event "*** Biggest EVER Titled Tuesday"]
[Site "Chess.com"]
[Date "2018.04.17"]
[Round "7"]
[White "SilverCat1992"]
[Black "JosephRyan"]
[Result "1-0"]
[WhiteElo "2066"]
[BlackElo "2074"]
[TimeControl "180+2"]
[EndTime "14:37:24 PDT"]
[Termination "SilverCat1992 won by resignation"]

1. e4 {[%clk 0:03:01.9]} 1... e6 {[%clk 0:02:58.6]} 2. d4 {[%clk 0:03:01]} 2...
d5 {[%clk 0:03:00]} 3. Nc3 {[%clk 0:03:02.6]} 3... Bb4 {[%clk 0:03:00.1]} 4. e5
{[%clk 0:03:03.5]} 4... Ne7 {[%clk 0:03:01.2]} 5. Bd2 {[%clk 0:03:00]} 5... b6
{[%clk 0:02:59.9]} 6. Qg4 {[%clk 0:02:43.4]} 6... Nf5 {[%clk 0:02:51.9]} 7. Bb5+
{[%clk 0:02:32.4]} 7... c6 {[%clk 0:02:51]} 8. Bd3 {[%clk 0:02:33.7]} 8... h5
{[%clk 0:02:50.9]} 9. Qh3 {[%clk 0:02:33.5]} 9... Nxd4 {[%clk 0:02:50.7]} 10.
O-O-O {[%clk 0:02:05.7]} 10... Ba6 {[%clk 0:02:41.9]} 11. Bxa6 {[%clk
0:01:40.8]} 11... Nxa6 {[%clk 0:02:33.2]} 12. g4 {[%clk 0:01:28.2]} 12... Qd7
{[%clk 0:02:24.2]} 13. gxh5 {[%clk 0:01:16.1]} 13... O-O-O {[%clk 0:02:19.6]}
14. Qd3 {[%clk 0:01:16.1]} 14... Nb5 {[%clk 0:02:08.7]} 15. Nxb5 {[%clk
0:01:13.9]} 15... Bxd2+ {[%clk 0:02:05.7]} 16. Rxd2 {[%clk 0:01:15.8]} 16...
cxb5 {[%clk 0:02:07]} 17. a4 {[%clk 0:01:05]} 17... Nc5 {[%clk 0:01:58]} 18.
Qxb5 {[%clk 0:01:06.4]} 18... Qxb5 {[%clk 0:01:59.1]} 19. axb5 {[%clk
0:01:08.3]} 19... Rxh5 {[%clk 0:02:00.1]} 20. Nf3 {[%clk 0:01:07.3]} 20... Rdh8
{[%clk 0:01:56.1]} 21. Rg1 {[%clk 0:01:06.4]} 21... g6 {[%clk 0:01:55.9]} 22.
Ng5 {[%clk 0:01:07.9]} 22... Ne4 {[%clk 0:01:50.4]} 23. Nxe4 {[%clk 0:01:03.5]}
23... dxe4 {[%clk 0:01:52.3]} 24. Rgd1 {[%clk 0:00:46.3]} 24... Rxh2 {[%clk
0:01:51.8]} 25. Rd7 {[%clk 0:00:47.8]} 25... Rxf2 {[%clk 0:01:43.4]} 26. Rxa7
{[%clk 0:00:40.6]} 26... e3 {[%clk 0:01:31.4]} 27. Ra8+ {[%clk 0:00:32]} 27...
Kb7 {[%clk 0:01:30]} 28. Rxh8 {[%clk 0:00:33.9]} 28... e2 {[%clk 0:01:30.5]} 29.
Re1 {[%clk 0:00:35.4]} 29... g5 {[%clk 0:01:30.7]} 30. Rg8 {[%clk 0:00:30.6]}
30... Rf5 {[%clk 0:01:28.4]} 31. Kd2 {[%clk 0:00:28.8]} 31... Kc7 {[%clk
0:01:30.3]} 32. Rxe2 {[%clk 0:00:27.5]} 32... Kd7 {[%clk 0:01:30.8]} 33. Kd3
{[%clk 0:00:25.3]} 33... Ke7 {[%clk 0:01:32.7]} 34. Re4 {[%clk 0:00:13.6]} 34...
Rf3+ {[%clk 0:01:33.1]} 35. Kd4 {[%clk 0:00:14.5]} 35... Rf2 {[%clk 0:01:33.9]}
36. Kd3 {[%clk 0:00:15.9]} 36... Rf3+ {[%clk 0:01:34.8]} 37. Re3 {[%clk
0:00:17.5]} 37... Rf5 {[%clk 0:01:35.1]} 38. c4 {[%clk 0:00:18]} 38... Rf2
{[%clk 0:01:29.8]} 39. b4 {[%clk 0:00:18.5]} 39... Rg2 {[%clk 0:01:28.4]} 40. c5
{[%clk 0:00:16.4]} 40... g4 {[%clk 0:01:28.7]} 41. c6 {[%clk 0:00:12.2]} 41...
Rc2 {[%clk 0:01:25.1]} 42. Kxc2 {[%clk 0:00:11.5]} 42... f5 {[%clk 0:01:25.4]}
43. exf6+ {[%clk 0:00:12.2]} 43... Kf7 {[%clk 0:01:25.8]} 44. Rxg4 {[%clk
0:00:14.1]} 44... Kxf6 {[%clk 0:01:26.9]} 45. Rge4 {[%clk 0:00:15.1]} 45... e5
{[%clk 0:01:28.8]} 46. Rxe5 {[%clk 0:00:16.4]} 46... Kf7 {[%clk 0:01:29.3]} 47.
c7 {[%clk 0:00:18.3]} 47... Kf6 {[%clk 0:01:31.2]} 48. c8=Q {[%clk 0:00:19.8]}
48... Kf7 {[%clk 0:01:33.1]} 49. Qe6+ {[%clk 0:00:20.5]} 1-0

[Event "*** Biggest EVER Titled Tuesday"]
[Site "Chess.com"]
[Date "2018.04.17"]
[Round "7"]
[White "Slovak_fighter2000"]
[Black "jlandaw"]
[Result "0-1"]
[WhiteElo "2269"]
[BlackElo "2476"]
[TimeControl "180+2"]
[EndTime "14:37:25 PDT"]
[Termination "jlandaw won by resignation"]

1. d4 {[%clk 0:03:01.9]} 1... d5 {[%clk 0:03:00.1]} 2. Bf4 {[%clk 0:03:03.4]}
2... Nf6 {[%clk 0:02:59.6]} 3. Nf3 {[%clk 0:03:04.9]} 3... g6 {[%clk 0:03:00.7]}
4. e3 {[%clk 0:03:06.3]} 4... Bg7 {[%clk 0:03:01.8]} 5. h3 {[%clk 0:03:07.6]}
5... O-O {[%clk 0:03:03]} 6. c4 {[%clk 0:03:08.4]} 6... c5 {[%clk 0:03:02.6]} 7.
Nc3 {[%clk 0:03:00.1]} 7... cxd4 {[%clk 0:02:54.2]} 8. exd4 {[%clk 0:03:02]}
8... Nc6 {[%clk 0:02:53.1]} 9. Be2 {[%clk 0:02:55.8]} 9... dxc4 {[%clk
0:02:26.2]} 10. Bxc4 {[%clk 0:02:56]} 10... Qb6 {[%clk 0:02:27.5]} 11. Bb3
{[%clk 0:02:50.6]} 11... Rd8 {[%clk 0:02:14.1]} 12. Be3 {[%clk 0:02:50.2]} 12...
Na5 {[%clk 0:02:02.2]} 13. O-O {[%clk 0:02:45.5]} 13... Nxb3 {[%clk 0:01:55.9]}
14. Qxb3 {[%clk 0:02:47.4]} 14... Qxb3 {[%clk 0:01:56.3]} 15. axb3 {[%clk
0:02:49.3]} 15... Be6 {[%clk 0:01:57.7]} 16. Nd2 {[%clk 0:02:42.7]} 16... Nd5
{[%clk 0:01:48.4]} 17. Nde4 {[%clk 0:02:38]} 17... Nxc3 {[%clk 0:01:37.1]} 18.
bxc3 {[%clk 0:02:36.7]} 18... Bxb3 {[%clk 0:01:37.8]} 19. Nd2 {[%clk 0:02:30.3]}
19... Bd5 {[%clk 0:01:35.4]} 20. Rfb1 {[%clk 0:02:24.1]} 20... a5 {[%clk
0:01:19.2]} 21. Ra3 {[%clk 0:02:03.6]} 21... e6 {[%clk 0:01:13.6]} 22. c4 {[%clk
0:01:48]} 22... Bc6 {[%clk 0:01:12.9]} 23. Nb3 {[%clk 0:01:42.5]} 23... a4
{[%clk 0:00:29.8]} 24. Nc5 {[%clk 0:01:03.1]} 24... Bxd4 {[%clk 0:00:30.2]} 25.
Bxd4 {[%clk 0:00:47.8]} 25... Rxd4 {[%clk 0:00:32.1]} 26. Rb4 {[%clk 0:00:41.9]}
26... b5 {[%clk 0:00:22.1]} 27. Nd3 {[%clk 0:00:16.7]} 27... Rxc4 {[%clk
0:00:19.1]} 28. Rxc4 {[%clk 0:00:14.2]} 28... bxc4 {[%clk 0:00:21]} 29. Nb2
{[%clk 0:00:13.3]} 29... Bb5 {[%clk 0:00:22.3]} 30. f4 {[%clk 0:00:10.7]} 30...
c3 {[%clk 0:00:22.1]} 31. Rxc3 {[%clk 0:00:05.1]} 31... a3 {[%clk 0:00:23.6]}
0-1

[Event "*** Biggest EVER Titled Tuesday"]
[Site "Chess.com"]
[Date "2018.04.17"]
[Round "7"]
[White "MrRooke6"]
[Black "Denis0027"]
[Result "1-0"]
[WhiteElo "2407"]
[BlackElo "2296"]
[TimeControl "180+2"]
[EndTime "14:37:33 PDT"]
[Termination "MrRooke6 won by resignation"]

1. d4 {[%clk 0:03:01.9]} 1... d5 {[%clk 0:02:59]} 2. c4 {[%clk 0:03:00.9]} 2...
e6 {[%clk 0:03:00.2]} 3. Nf3 {[%clk 0:03:01.6]} 3... Nf6 {[%clk 0:03:00.7]} 4.
Nc3 {[%clk 0:03:01.5]} 4... Bb4 {[%clk 0:03:01.3]} 5. Qa4+ {[%clk 0:03:01.4]}
5... Nc6 {[%clk 0:03:01.7]} 6. Bg5 {[%clk 0:03:01.6]} 6... h6 {[%clk 0:03:01.2]}
7. Bxf6 {[%clk 0:03:02.6]} 7... Qxf6 {[%clk 0:03:03.1]} 8. e3 {[%clk 0:03:03.5]}
8... O-O {[%clk 0:03:01.5]} 9. Be2 {[%clk 0:03:04.6]} 9... Rd8 {[%clk
0:02:48.3]} 10. O-O {[%clk 0:03:03.4]} 10... a6 {[%clk 0:02:27.9]} 11. Rfd1
{[%clk 0:03:03.1]} 11... dxc4 {[%clk 0:02:25.9]} 12. Bxc4 {[%clk 0:03:02.4]}
12... Bd7 {[%clk 0:02:15.3]} 13. Qc2 {[%clk 0:03:03.1]} 13... b5 {[%clk
0:02:13.3]} 14. Bd3 {[%clk 0:03:01]} 14... e5 {[%clk 0:01:45.4]} 15. Nd5 {[%clk
0:02:57.6]} 15... Qd6 {[%clk 0:01:38.2]} 16. dxe5 {[%clk 0:02:57.2]} 16... Qf8
{[%clk 0:01:06]} 17. Bh7+ {[%clk 0:02:31.9]} 17... Kh8 {[%clk 0:01:05.7]} 18.
Be4 {[%clk 0:02:32.5]} 18... Ba5 {[%clk 0:01:00.6]} 19. Rac1 {[%clk 0:02:25.3]}
19... Rac8 {[%clk 0:00:55.9]} 20. a3 {[%clk 0:02:25.2]} 20... b4 {[%clk
0:00:41.9]} 21. axb4 {[%clk 0:02:23.4]} 21... Bxb4 {[%clk 0:00:43.8]} 22. Nxb4
{[%clk 0:02:22.7]} 22... Nxb4 {[%clk 0:00:45.7]} 23. Qc4 {[%clk 0:02:11]} 23...
c5 {[%clk 0:00:45.3]} 24. Bb7 {[%clk 0:01:53]} 24... Bb5 {[%clk 0:00:46]} 25.
Qh4 {[%clk 0:01:48.2]} 25... Rb8 {[%clk 0:00:40.8]} 26. Be4 {[%clk 0:01:49]}
26... Re8 {[%clk 0:00:32.2]} 27. Rd6 {[%clk 0:01:47.1]} 27... Be2 {[%clk
0:00:25.8]} 28. Qf4 {[%clk 0:01:34]} 28... Rbd8 {[%clk 0:00:20.8]} 29. Rxc5
{[%clk 0:01:30.8]} 29... Bxf3 {[%clk 0:00:16]} 30. gxf3 {[%clk 0:01:26.6]} 30...
Rc8 {[%clk 0:00:11.5]} 31. Qf5 {[%clk 0:01:22.1]} 31... g6 {[%clk 0:00:09.9]}
32. Qf6+ {[%clk 0:01:22.3]} 32... Kg8 {[%clk 0:00:10.9]} 33. Rxc8 {[%clk
0:01:17.3]} 33... Rxc8 {[%clk 0:00:12.8]} 34. e6 {[%clk 0:01:15.4]} 34... fxe6
{[%clk 0:00:12.1]} 35. Qxe6+ {[%clk 0:01:15.8]} 35... Kh8 {[%clk 0:00:13.4]} 36.
Qe5+ {[%clk 0:01:14.4]} 36... Qg7 {[%clk 0:00:13.8]} 37. Qxg7+ {[%clk
0:01:14.7]} 37... Kxg7 {[%clk 0:00:15.7]} 38. Rxg6+ {[%clk 0:01:15.7]} 38... Kf7
{[%clk 0:00:17.3]} 39. Rxh6 {[%clk 0:01:16.6]} 39... a5 {[%clk 0:00:18.5]} 40.
Rh5 {[%clk 0:01:14.8]} 40... Rc1+ {[%clk 0:00:16.3]} 41. Kg2 {[%clk 0:01:15.4]}
41... Ra1 {[%clk 0:00:18.2]} 42. Rb5 {[%clk 0:01:14.3]} 42... Ra4 {[%clk
0:00:16.3]} 43. h4 {[%clk 0:01:14.7]} 43... Na2 {[%clk 0:00:17.5]} 44. Bd5+
{[%clk 0:01:14.7]} 44... Kf6 {[%clk 0:00:17.1]} 45. Bxa2 {[%clk 0:01:15.6]}
45... Rxa2 {[%clk 0:00:19]} 46. h5 {[%clk 0:01:16.6]} 1-0

[Event "*** Biggest EVER Titled Tuesday"]
[Site "Chess.com"]
[Date "2018.04.17"]
[Round "7"]
[White "Msb2"]
[Black "gmjlh"]
[Result "0-1"]
[WhiteElo "2695"]
[BlackElo "2580"]
[TimeControl "180+2"]
[EndTime "14:37:40 PDT"]
[Termination "gmjlh won by resignation"]

1. d4 {[%clk 0:03:01.9]} 1... d5 {[%clk 0:03:00.5]} 2. c4 {[%clk 0:03:03.3]}
2... e6 {[%clk 0:03:01.2]} 3. Nf3 {[%clk 0:03:04.1]} 3... Nf6 {[%clk 0:03:01.8]}
4. g3 {[%clk 0:03:05.6]} 4... Be7 {[%clk 0:03:02.2]} 5. Bg2 {[%clk 0:03:07.2]}
5... O-O {[%clk 0:03:03]} 6. O-O {[%clk 0:03:08.9]} 6... dxc4 {[%clk 0:03:02.5]}
7. Qc2 {[%clk 0:03:10.5]} 7... a6 {[%clk 0:03:03.1]} 8. Rd1 {[%clk 0:03:12.1]}
8... c5 {[%clk 0:02:42.1]} 9. dxc5 {[%clk 0:03:09.9]} 9... Qc7 {[%clk
0:02:42.1]} 10. Na3 {[%clk 0:03:00.5]} 10... Bxc5 {[%clk 0:02:38.2]} 11. Nxc4
{[%clk 0:03:01.7]} 11... b5 {[%clk 0:02:32.2]} 12. Bf4 {[%clk 0:02:55.2]} 12...
Qa7 {[%clk 0:02:30.8]} 13. Ne3 {[%clk 0:02:56.9]} 13... Bb7 {[%clk 0:02:21.4]}
14. Ng5 {[%clk 0:02:22.7]} 14... Bxg2 {[%clk 0:02:18.4]} 15. Ng4 {[%clk
0:02:23.4]} 15... Ne4 {[%clk 0:01:50.9]} 16. Nxe4 {[%clk 0:01:44.9]} 16... Bxe4
{[%clk 0:01:48.4]} 17. Qxe4 {[%clk 0:01:46.8]} 17... Nd7 {[%clk 0:01:49.2]} 18.
Bh6 {[%clk 0:01:47.8]} 18... Kh8 {[%clk 0:01:22.4]} 19. Be3 {[%clk 0:00:41.3]}
19... Bxe3 {[%clk 0:01:20.9]} 20. Qxe3 {[%clk 0:00:41.1]} 20... h5 {[%clk
0:00:51.8]} 21. Qxa7 {[%clk 0:00:30.6]} 21... Rxa7 {[%clk 0:00:53.7]} 22. Ne3
{[%clk 0:00:32.4]} 22... Rc8 {[%clk 0:00:54.6]} 23. Rd6 {[%clk 0:00:30.2]} 23...
Nf6 {[%clk 0:00:52.5]} 24. f3 {[%clk 0:00:30.6]} 24... g5 {[%clk 0:00:51.9]} 25.
Kf2 {[%clk 0:00:30.6]} 25... Kg7 {[%clk 0:00:53]} 26. Rad1 {[%clk 0:00:28.7]}
26... Kf8 {[%clk 0:00:53.1]} 27. Rb6 {[%clk 0:00:28.2]} 27... Ke7 {[%clk
0:00:46.9]} 28. Rdd6 {[%clk 0:00:29.1]} 28... Rca8 {[%clk 0:00:36.8]} 29. Nf5+
{[%clk 0:00:27.8]} 29... Ke8 {[%clk 0:00:38.3]} 30. Nd4 {[%clk 0:00:24.6]} 30...
Nd7 {[%clk 0:00:35.5]} 31. Rbc6 {[%clk 0:00:23.8]} 31... Ke7 {[%clk 0:00:35.8]}
32. Nb3 {[%clk 0:00:19.2]} 32... Ne5 {[%clk 0:00:35.1]} 33. Rb6 {[%clk
0:00:13.9]} 33... Nc4 {[%clk 0:00:36.2]} 34. Rdc6 {[%clk 0:00:15.3]} 34... Nxb6
{[%clk 0:00:37.5]} 35. Rxb6 {[%clk 0:00:17.2]} 35... Kd7 {[%clk 0:00:38.7]} 36.
Na5 {[%clk 0:00:16.1]} 36... Rc8 {[%clk 0:00:36.6]} 37. Ke3 {[%clk 0:00:16.4]}
37... Rc2 {[%clk 0:00:37.1]} 38. Kd3 {[%clk 0:00:17.4]} 38... Rxb2 {[%clk
0:00:36.4]} 39. Rb8 {[%clk 0:00:18.7]} 39... Rxa2 {[%clk 0:00:36.4]} 40. Nb3
{[%clk 0:00:20.3]} 40... Rc7 {[%clk 0:00:36.3]} 41. Rg8 {[%clk 0:00:21.1]} 41...
Ra3 {[%clk 0:00:37.1]} 0-1

[Event "*** Biggest EVER Titled Tuesday"]
[Site "Chess.com"]
[Date "2018.04.17"]
[Round "7"]
[White "Iball95"]
[Black "GMVallejo"]
[Result "0-1"]
[WhiteElo "2553"]
[BlackElo "2760"]
[TimeControl "180+2"]
[EndTime "14:37:41 PDT"]
[Termination "GMVallejo won by resignation"]

1. d4 {[%clk 0:03:01.9]} 1... f5 {[%clk 0:02:59.2]} 2. Bf4 {[%clk 0:03:00.6]}
2... Nf6 {[%clk 0:02:59.5]} 3. e3 {[%clk 0:03:01.6]} 3... e6 {[%clk 0:03:00.1]}
4. Nf3 {[%clk 0:03:01.8]} 4... b6 {[%clk 0:02:57.9]} 5. h3 {[%clk 0:03:01.2]}
5... Bb7 {[%clk 0:02:58]} 6. Nbd2 {[%clk 0:03:02.6]} 6... Bd6 {[%clk 0:02:54.9]}
7. Bxd6 {[%clk 0:02:45.3]} 7... cxd6 {[%clk 0:02:56.8]} 8. Be2 {[%clk
0:02:45.5]} 8... O-O {[%clk 0:02:53.6]} 9. O-O {[%clk 0:02:46.7]} 9... d5 {[%clk
0:02:25.9]} 10. a4 {[%clk 0:02:44.4]} 10... Nc6 {[%clk 0:02:22.4]} 11. c3 {[%clk
0:02:45.2]} 11... Ne4 {[%clk 0:02:19.8]} 12. Ne5 {[%clk 0:02:38]} 12... Nxe5
{[%clk 0:01:54.3]} 13. dxe5 {[%clk 0:02:39.9]} 13... Qc7 {[%clk 0:01:55.3]} 14.
f4 {[%clk 0:02:34.9]} 14... Nxd2 {[%clk 0:01:10]} 15. Qxd2 {[%clk 0:02:36.8]}
15... d6 {[%clk 0:01:03.5]} 16. exd6 {[%clk 0:02:30.5]} 16... Qxd6 {[%clk
0:01:05.4]} 17. a5 {[%clk 0:02:29.3]} 17... Rfb8 {[%clk 0:01:01.3]} 18. Qd4
{[%clk 0:02:23.5]} 18... Qc5 {[%clk 0:00:54.5]} 19. axb6 {[%clk 0:02:17.9]}
19... axb6 {[%clk 0:00:53.5]} 20. Kf2 {[%clk 0:02:11.1]} 20... Qxd4 {[%clk
0:00:39.9]} 21. exd4 {[%clk 0:02:13]} 21... Bc6 {[%clk 0:00:40.4]} 22. Ke3
{[%clk 0:02:08.2]} 22... Rxa1 {[%clk 0:00:34.7]} 23. Rxa1 {[%clk 0:02:10.1]}
23... Ra8 {[%clk 0:00:35.9]} 24. Rxa8+ {[%clk 0:02:00.7]} 24... Bxa8 {[%clk
0:00:37.8]} 25. Kd2 {[%clk 0:01:53.3]} 25... Kf7 {[%clk 0:00:37.4]} 26. Kc2
{[%clk 0:01:54.7]} 26... Ke7 {[%clk 0:00:37.7]} 27. Kb3 {[%clk 0:01:55.4]} 27...
Kd6 {[%clk 0:00:36.9]} 28. Kb4 {[%clk 0:01:56.8]} 28... Bc6 {[%clk 0:00:32.3]}
29. Bb5 {[%clk 0:01:51.3]} 29... Bb7 {[%clk 0:00:31.8]} 30. g3 {[%clk
0:01:44.5]} 30... h6 {[%clk 0:00:30.6]} 31. Be2 {[%clk 0:01:42.3]} 31... g5
{[%clk 0:00:25.8]} 32. b3 {[%clk 0:01:42.5]} 32... Bc6 {[%clk 0:00:24.4]} 33.
Bf3 {[%clk 0:01:41.3]} 33... Bd7 {[%clk 0:00:22.2]} 34. c4 {[%clk 0:01:42.1]}
34... gxf4 {[%clk 0:00:22.4]} 35. gxf4 {[%clk 0:01:42.5]} 35... dxc4 {[%clk
0:00:15.6]} 36. bxc4 {[%clk 0:01:44.4]} 36... Be8 {[%clk 0:00:15.4]} 37. c5+
{[%clk 0:01:41.3]} 37... Kc7 {[%clk 0:00:16.5]} 38. Kc3 {[%clk 0:01:39.4]} 38...
Bd7 {[%clk 0:00:16.4]} 39. Kb4 {[%clk 0:01:32.8]} 39... Be8 {[%clk 0:00:17.2]}
40. Be2 {[%clk 0:01:33.9]} 40... Bc6 {[%clk 0:00:16.3]} 41. Bc4 {[%clk
0:01:27.4]} 41... Bd7 {[%clk 0:00:16.7]} 42. Bb5 {[%clk 0:01:25.8]} 42... Bc8
{[%clk 0:00:16.5]} 43. Kc3 {[%clk 0:01:24.3]} 43... Bb7 {[%clk 0:00:16.1]} 44.
Kd3 {[%clk 0:01:22.1]} 44... Bg2 {[%clk 0:00:16.7]} 45. h4 {[%clk 0:01:22.4]}
45... Bf1+ {[%clk 0:00:17.3]} 46. Kc3 {[%clk 0:01:05.5]} 46... Bxb5 {[%clk
0:00:18]} 47. d5 {[%clk 0:01:07.4]} 47... bxc5 {[%clk 0:00:16.8]} 0-1

[Event "*** Biggest EVER Titled Tuesday"]
[Site "Chess.com"]
[Date "2018.04.17"]
[Round "7"]
[White "BillForster"]
[Black "talento10"]
[Result "0-1"]
[WhiteElo "1613"]
[BlackElo "2327"]
[TimeControl "180+2"]
[EndTime "14:37:48 PDT"]
[Termination "talento10 won by resignation"]

1. d4 {[%clk 0:03:01.9]} 1... Nf6 {[%clk 0:03:00]} 2. c4 {[%clk 0:03:01.9]} 2...
e6 {[%clk 0:03:01.4]} 3. g3 {[%clk 0:03:00.6]} 3... d5 {[%clk 0:02:59.1]} 4. Bg2
{[%clk 0:03:00.9]} 4... Bb4+ {[%clk 0:02:59]} 5. Bd2 {[%clk 0:03:00.2]} 5... Be7
{[%clk 0:03:00.1]} 6. Nf3 {[%clk 0:02:58.4]} 6... O-O {[%clk 0:03:00.5]} 7. O-O
{[%clk 0:02:56.6]} 7... Nbd7 {[%clk 0:03:01.6]} 8. Qc2 {[%clk 0:02:52.2]} 8...
c6 {[%clk 0:02:53]} 9. b3 {[%clk 0:02:42.6]} 9... Ne4 {[%clk 0:02:52.7]} 10. Nc3
{[%clk 0:02:29.9]} 10... f5 {[%clk 0:02:53.8]} 11. Nd1 {[%clk 0:01:51.8]} 11...
g5 {[%clk 0:02:50.4]} 12. Nb2 {[%clk 0:01:47.6]} 12... g4 {[%clk 0:02:25.5]} 13.
Ne5 {[%clk 0:01:47.3]} 13... Nxe5 {[%clk 0:02:26.7]} 14. dxe5 {[%clk 0:01:46.7]}
14... Nxd2 {[%clk 0:02:28.2]} 15. Qxd2 {[%clk 0:01:44.7]} 15... a5 {[%clk
0:02:29.8]} 16. Rfd1 {[%clk 0:01:30.5]} 16... Bg5 {[%clk 0:02:21.9]} 17. Qc2
{[%clk 0:01:27.2]} 17... Qe7 {[%clk 0:02:02]} 18. Nd3 {[%clk 0:01:26]} 18... h5
{[%clk 0:01:52.7]} 19. e3 {[%clk 0:01:11.9]} 19... h4 {[%clk 0:01:50]} 20. Nf4
{[%clk 0:01:08.8]} 20... Qh7 {[%clk 0:01:26.2]} 21. cxd5 {[%clk 0:00:57.6]}
21... exd5 {[%clk 0:01:22.1]} 22. Rac1 {[%clk 0:00:48.4]} 22... Bxf4 {[%clk
0:00:59.2]} 23. exf4 {[%clk 0:00:48.4]} 23... Be6 {[%clk 0:01:01.1]} 24. Qc5
{[%clk 0:00:47.1]} 24... Rf7 {[%clk 0:00:47]} 25. Rd2 {[%clk 0:00:47.2]} 25...
Kg7 {[%clk 0:00:34.8]} 26. Rdc2 {[%clk 0:00:35.4]} 26... Rh8 {[%clk 0:00:33.9]}
27. Bf1 {[%clk 0:00:28.1]} 27... Ra8 {[%clk 0:00:25.9]} 28. Qb6 {[%clk
0:00:26.3]} 28... Qh5 {[%clk 0:00:21.7]} 29. Rc5 {[%clk 0:00:24.3]} 29... a4
{[%clk 0:00:19.5]} 30. b4 {[%clk 0:00:21.5]} 30... d4 {[%clk 0:00:18.4]} 31. a3
{[%clk 0:00:20]} 31... Bb3 {[%clk 0:00:15.9]} 32. b5 {[%clk 0:00:17.2]} 32...
Rh8 {[%clk 0:00:11.1]} 33. bxc6 {[%clk 0:00:16.1]} 33... hxg3 {[%clk 0:00:11.2]}
0-1

[Event "*** Biggest EVER Titled Tuesday"]
[Site "Chess.com"]
[Date "2018.04.17"]
[Round "7"]
[White "WarlordX"]
[Black "djano"]
[Result "1-0"]
[WhiteElo "2302"]
[BlackElo "2442"]
[TimeControl "180+2"]
[EndTime "14:37:54 PDT"]
[Termination "WarlordX won on time"]

1. Nf3 {[%clk 0:03:01.9]} 1... g6 {[%clk 0:02:57.2]} 2. d4 {[%clk 0:03:00.7]}
2... Bg7 {[%clk 0:02:58]} 3. c4 {[%clk 0:03:02.3]} 3... Nf6 {[%clk 0:02:58]} 4.
Nc3 {[%clk 0:03:03.2]} 4... d5 {[%clk 0:02:58.8]} 5. Bf4 {[%clk 0:03:01.1]} 5...
O-O {[%clk 0:02:59]} 6. e3 {[%clk 0:03:01.3]} 6... c5 {[%clk 0:02:59.9]} 7. Be2
{[%clk 0:02:55.8]} 7... cxd4 {[%clk 0:02:58]} 8. Nxd4 {[%clk 0:02:57.7]} 8...
dxc4 {[%clk 0:02:46.1]} 9. O-O {[%clk 0:02:28]} 9... Nbd7 {[%clk 0:02:43.4]} 10.
Bg3 {[%clk 0:02:21.5]} 10... Nb6 {[%clk 0:02:43.5]} 11. a4 {[%clk 0:02:22.1]}
11... Nbd5 {[%clk 0:02:16]} 12. Bxc4 {[%clk 0:02:14.6]} 12... Nxc3 {[%clk
0:02:16.2]} 13. bxc3 {[%clk 0:02:16.5]} 13... Ne4 {[%clk 0:02:15.4]} 14. Rc1
{[%clk 0:01:51.2]} 14... Bd7 {[%clk 0:02:07.7]} 15. Bb5 {[%clk 0:01:48.4]} 15...
Rc8 {[%clk 0:01:59.8]} 16. Qd3 {[%clk 0:01:26.2]} 16... Bxb5 {[%clk 0:01:44]}
17. Qxb5 {[%clk 0:01:20.4]} 17... Nxc3 {[%clk 0:01:40]} 18. Qd3 {[%clk
0:00:39.2]} 18... Bxd4 {[%clk 0:01:28.5]} 19. exd4 {[%clk 0:00:38.1]} 19... Qxd4
{[%clk 0:01:27.1]} 20. Qf3 {[%clk 0:00:29.4]} 20... b6 {[%clk 0:00:59.4]} 21.
Rfe1 {[%clk 0:00:30.5]} 21... Nxa4 {[%clk 0:00:42]} 22. Rxc8 {[%clk 0:00:16.5]}
22... Rxc8 {[%clk 0:00:43.9]} 23. Qb7 {[%clk 0:00:17.6]} 23... Qc3 {[%clk
0:00:26.2]} 24. Rd1 {[%clk 0:00:13.8]} 24... e6 {[%clk 0:00:21.4]} 25. h4 {[%clk
0:00:13.9]} 25... h5 {[%clk 0:00:19.5]} 26. Qxa7 {[%clk 0:00:15]} 26... b5
{[%clk 0:00:18.5]} 27. Rd7 {[%clk 0:00:13]} 27... Rf8 {[%clk 0:00:18.7]} 28. Bd6
{[%clk 0:00:13.2]} 28... Qc1+ {[%clk 0:00:17.2]} 29. Kh2 {[%clk 0:00:14.2]}
29... Qh6 {[%clk 0:00:09.1]} 30. Bxf8 {[%clk 0:00:09.3]} 30... Qf4+ {[%clk
0:00:10]} 31. g3 {[%clk 0:00:09.7]} 31... Qxf2+ {[%clk 0:00:03.5]} 32. Qxf2
{[%clk 0:00:10.2]} 1-0